bitfinex/quotes_ETHUSD_20250815
["timestamp","ask_amount","ask_price","bid_price","bid_amount"]
[1755225623841,30.0,4633.0,4632.9,0.9268]
[1755225624009,3.316,4633.7,4633.1,2.15836678]
[1755225624208,30.0,4633.6,4633.2,0.9268]
[1755225624426,30.0,4633.7,4633.3,0.9268]
[1755225624719,30.0,4633.7,4633.4,0.9268]
[1755225624917,30.0,4633.7,4633.5,0.9268]
[1755225625119,30.0,4633.7,4632.9,2.26647001]
[1755225625320,6.30211198,4633.6,4633.0,0.4411]
[1755225625502,30.0,4633.5,4633.0,0.4411]
[1755225625957,30.002,4633.5,4633.1,0.4857]
[1755225626251,30.0,4633.4,4633.2,0.9268]
[1755225626437,30.0,4633.4,4632.9,0.108]
[1755225626752,30.0,4633.4,4633.3,0.9268]
[1755225630312,0.002,4633.5,4633.3,0.9268]
[1755225630530,0.002,4633.5,4632.9,0.108]
[1755225630744,0.002,4633.5,4633.4,0.9268]
[1755225631356,0.002,4633.5,4633.4,1.0348]
[1755225636946,0.002,4633.5,4633.4,0.5491]
[1755225640650,0.002,4633.5,4633.3,3.309]
[1755225641471,0.002,4633.5,4633.4,0.4411]
[1755225642246,0.002,4633.5,4633.4,0.9268]
[1755225642576,0.002,4633.5,4633.4,1.0348]
[1755225646742,0.002,4633.5,4633.4,0.108]
[1755225647075,36.28769493,4633.5,4633.4,3.309]
[1755225647477,30.002,4633.5,4633.4,3.309]
[1755225647975,30.002,4633.5,4633.1,0.5491]
[1755225648165,0.002,4633.5,4633.4,3.309]
[1755225648369,30.002,4633.5,4633.4,3.309]
[1755225649272,30.002,4633.5,4633.4,4.2358]
[1755225649475,0.002,4633.5,4633.4,4.2358]
[1755225649647,0.002,4633.5,4633.4,4.3438]
[1755225653576,0.002,4633.5,4633.4,1.0348]
[1755225653778,6.28569493,4634.1,4633.4,3.7501]
[1755225653978,30.0,4634.0,4633.4,0.108]
[1755225654184,30.0,4634.0,4633.5,3.309]
[1755225654950,30.0,4634.0,4633.4,0.108]
[1755225654951,6.28569493,4633.6,4633.4,0.108]
[1755225655251,6.28569493,4633.6,4633.5,3.309]
[1755225655854,6.28569493,4633.6,4633.2,0.108]
[1755225656054,36.39369493,4633.5,4632.9,3.309]
[1755225656271,30.0,4633.4,4632.8,0.108]
[1755225656483,30.0,4633.4,4632.9,3.309]
[1755225657085,0.01641705,4633.3,4632.9,3.309]
[1755225657255,30.0,4633.2,4632.9,3.309]
[1755225657759,30.0,4633.4,4632.9,3.309]
[1755225658061,0.01641705,4633.3,4632.9,3.309]
[1755225658265,30.0,4633.2,4632.8,0.108]
[1755225658484,30.0,4633.2,4632.9,3.309]
[1755225658691,30.0,4633.4,4632.9,3.309]
[1755225659267,0.01641705,4633.3,4632.9,3.309]
[1755225659467,30.0,4633.2,4632.9,3.309]
[1755225659875,30.0,4633.4,4632.9,3.309]
[1755225660077,30.0,4633.4,4632.9,0.4723]
[1755225660266,30.0,4633.4,4632.8,0.108]
[1755225660267,0.01641705,4633.3,4633.0,3.309]
[1755225660475,30.0,4633.2,4633.1,3.309]
[1755225660786,30.0,4633.4,4633.1,3.309]
[1755225661389,0.01641705,4633.3,4633.1,3.309]
[1755225661599,30.8,4633.2,4632.8,0.108]
[1755225661776,30.0,4633.1,4632.9,3.309]
[1755225662303,30.0,4632.9,4632.5,0.108]
[1755225662593,30.0,4632.9,4632.6,3.309]
[1755225662783,29.946,4632.9,4632.5,0.108]
[1755225662984,30.0,4632.9,4632.6,3.309]
[1755225665009,30.0,4632.6,4632.1,0.001]
[1755225665303,30.0,4632.7,4632.4,3.309]
[1755225665501,30.0,4632.8,4632.4,3.309]
[1755225665706,30.0,4632.8,4632.4,3.7813]
[1755225667404,6.28569493,4632.5,4632.3,0.108]
[1755225667573,30.0,4632.4,4632.3,0.108]
[1755225667775,30.0,4632.4,4632.3,3.417]
[1755225667992,30.0,4632.4,4632.3,3.309]
[1755225668479,30.0,4632.4,4632.1,0.109]
[1755225668696,2.15880143,4632.2,4632.1,0.001]
[1755225668993,30.108,4632.2,4632.1,0.001]
[1755225670140,32.26680143,4632.2,4632.1,0.001]
[1755225670297,30.108,4632.2,4632.1,0.001]
[1755225670698,30.108,4632.2,4632.1,0.4733]
[1755225671427,30.108,4632.2,4632.1,0.001]
[1755225672091,32.26680143,4632.2,4632.1,0.001]
[1755225672415,38.55249636,4632.2,4632.1,0.001]
[1755225672620,38.55249636,4632.2,4631.8,0.001]
[1755225672621,2.15884803,4632.1,4631.8,0.001]
[1755225672801,0.108,4631.9,4631.8,0.001]
[1755225673001,32.26694125,4631.9,4631.8,0.001]
[1755225673292,32.83524125,4631.9,4631.8,0.001]
[1755225673697,33.29972313,4631.9,4631.8,0.001]
[1755225675702,33.29972313,4631.9,4630.7,0.001]
[1755225675898,8.55286926,4631.4,4630.7,0.001]
[1755225676124,41.86186926,4631.4,4630.7,0.001]
[1755225677341,42.31626926,4631.4,4630.7,0.001]
[1755225677847,41.86186926,4631.4,4630.7,0.001]
[1755225679800,41.86186926,4631.4,4630.9,0.4723]
[1755225680333,30.108,4631.4,4631.3,0.9255]
[1755225680502,32.26717433,4631.4,4631.3,0.9255]
[1755225680828,41.86186926,4631.4,4631.3,0.001]
[1755225681003,11.86186926,4631.4,4631.3,0.001]
[1755225681403,41.86186926,4631.4,4631.3,0.001]
[1755225686104,11.86186926,4631.4,4631.3,0.001]
[1755225686505,41.86186926,4631.4,4631.3,0.001]
[1755225686713,42.34286926,4631.4,4630.8,0.001]
[1755225686906,2.15933516,4631.1,4630.8,0.001]
[1755225687112,2.15954735,4630.6,4629.1,0.8987]
[1755225687362,8.44584627,4629.4,4629.1,0.8987]
[1755225687518,0.01641705,4629.3,4629.1,0.8987]
[1755225687718,30.0,4629.3,4629.1,0.434]
[1755225687923,30.0,4629.3,4629.2,0.434]
[1755225688331,30.0,4629.3,4629.2,0.8987]
[1755225688512,0.108,4629.4,4629.2,0.8987]
[1755225688841,0.108,4629.4,4629.3,0.8987]
[1755225690243,30.108,4629.4,4629.3,0.8987]
[1755225690832,3.31,4630.2,4629.3,1.28210053]
[1755225691011,0.108,4629.9,4629.4,0.8987]
[1755225691216,30.0,4629.8,4629.5,0.8987]
[1755225691444,30.0,4629.8,4629.6,0.8987]
[1755225691636,30.0,4629.8,4629.7,0.8987]
[1755225691954,30.0,4629.8,4629.4,0.434]
[1755225692120,30.0,4629.8,4629.5,0.434]
[1755225692321,30.0,4629.8,4629.6,0.434]
[1755225692522,6.28569493,4629.7,4629.3,0.108]
[1755225692741,30.0,4629.6,4629.4,0.8987]
[1755225692947,30.0,4630.0,4629.3,0.108]
[1755225693250,30.0,4630.0,4629.5,0.8987]
[1755225693415,30.0,4630.0,4629.3,0.108]
[1755225693617,30.0,4630.0,4629.6,0.8987]
[1755225693828,32.15984718,4630.0,4629.7,0.434]
[1755225694046,30.0,4629.9,4629.8,0.434]
[1755225694251,30.0,4629.9,4629.6,0.4647]
[1755225694549,30.0,4630.0,4629.7,0.4647]
[1755225694752,33.31,4630.0,4629.8,0.434]
[1755225694920,30.0,4629.9,4629.7,0.4647]
[1755225695460,0.01641705,4629.8,4629.3,0.108]
[1755225695658,32.15997083,4629.7,4629.4,0.434]
[1755225695823,30.0,4629.6,4629.5,0.8987]
[1755225696020,30.0,4629.9,4629.5,0.8987]
[1755225696220,30.0,4629.9,4629.6,0.8987]
[1755225696442,3.47501093,4630.0,4629.3,0.108]
[1755225696443,3.47501093,4630.0,4629.7,0.8987]
[1755225696652,3.47501093,4630.0,4629.8,0.8987]
[1755225696947,0.16501093,4630.0,4629.9,0.8987]
[1755225697127,2.15982721,4630.0,4629.9,0.434]
[1755225697457,32.15987386,4629.9,4629.3,0.5727]
[1755225697622,3.47505945,4630.0,4629.3,0.108]
[1755225697623,8.44580207,4629.4,4629.3,0.108]
[1755225697824,2.16020046,4629.2,4629.1,0.001]
[1755225698063,35.48661751,4629.2,4629.1,0.001]
[1755225698229,36.41544755,4629.2,4629.1,0.001]
[1755225698429,36.52344755,4629.2,4629.1,0.001]
[1755225698750,36.63734755,4629.2,4629.1,0.001]
[1755225699765,36.52344755,4629.2,4629.1,0.001]
[1755225700176,36.04244755,4629.2,4629.1,0.001]
[1755225701552,32.73244755,4629.2,4629.1,0.001]
[1755225701757,36.37820046,4629.2,4629.1,0.435]
[1755225701930,30.908,4629.2,4629.1,0.435]
[1755225702134,30.908,4629.2,4629.1,0.8997]
[1755225702135,36.37920046,4629.2,4629.1,0.8997]
[1755225702332,34.219,4629.2,4629.1,0.8997]
[1755225702754,36.37920046,4629.2,4629.1,0.8997]
[1755225703254,36.37920046,4629.2,4629.1,0.001]
[1755225703255,36.84329239,4629.2,4629.1,0.001]
[1755225704758,2.16024713,4629.1,4629.0,2.88730529]
[1755225704931,32.62433906,4629.1,4629.0,2.88730529]
[1755225705564,33.311,4629.1,4629.0,3.32130529]
[1755225705763,3.311,4629.1,4629.0,3.32130529]
[1755225705968,33.311,4629.1,4629.0,3.32130529]
[1755225706365,30.0,4629.1,4629.0,3.32130529]
[1755225706668,35.47124713,4629.1,4629.0,2.88730529]
[1755225707043,35.93531147,4629.1,4629.0,2.88730529]
[1755225709857,2.16034152,4628.9,4628.1,0.001]
[1755225710178,33.311,4628.8,4628.2,0.434]
[1755225710474,2.16062053,4628.3,4628.2,0.434]
[1755225710672,35.57962053,4628.3,4628.2,0.434]
[1755225711641,2.16066721,4628.2,4628.1,0.001]
[1755225711875,32.62476956,4628.2,4628.1,0.001]
[1755225715960,2.62476956,4628.2,4628.1,0.001]
[1755225716187,32.62476956,4628.2,4628.1,0.001]
[1755225717978,30.46410235,4628.2,4628.1,0.4461]
[1755225718191,35.47166721,4628.2,4628.1,0.9035]
[1755225718492,33.311,4628.2,4628.1,0.9035]
[1755225718779,3.311,4628.4,4628.1,0.9035]
[1755225719078,3.311,4628.4,4628.2,0.9025]
[1755225719238,3.311,4628.4,4628.3,0.4451]
[1755225719442,3.311,4628.4,4628.3,0.9025]
[1755225719643,0.8,4629.2,4628.3,0.9025]
[1755225719902,0.108,4628.9,4628.4,0.92410573]
[1755225720087,3.311,4629.1,4628.3,0.108]
[1755225720244,3.311,4629.1,4628.1,0.001]
[1755225720245,0.8,4629.2,4628.5,0.9025]
[1755225720445,0.8,4629.2,4629.0,0.108]
[1755225720640,0.8,4629.2,4629.1,0.9025]
[1755225722403,3.419,4629.8,4629.1,1.21958653]
[1755225722580,30.0,4629.7,4629.1,0.4574]
[1755225722896,30.0,4629.7,4629.5,0.108]
[1755225723193,30.0,4629.5,4629.2,0.4451]
[1755225723389,3.31,4629.4,4629.0,0.108]
[1755225723591,3.31,4629.4,4629.1,0.9025]
[1755225723761,30.0,4629.3,4629.2,1.0105]
[1755225723962,30.0,4629.5,4629.2,1.0105]
[1755225724198,0.15811197,4630.0,4629.3,0.9025]
[1755225724398,3.31,4630.0,4629.3,0.9025]
[1755225724703,3.312,4630.1,4629.7,0.108]
[1755225725000,3.312,4630.1,4629.8,0.4451]
[1755225725202,3.312,4630.1,4629.8,0.9025]
[1755225725378,3.312,4630.1,4629.9,0.4574]
[1755225725574,3.312,4630.1,4630.0,0.4451]
[1755225726907,3.312,4630.1,4630.0,0.9025]
[1755225727081,0.002,4630.1,4630.0,0.9025]
[1755225727284,3.312,4630.1,4630.0,0.9025]
[1755225727482,4.112,4630.1,4630.0,0.4451]
[1755225728506,6.27178056,4630.1,4630.0,0.4451]
[1755225728667,2.1598732,4630.0,4629.7,0.108]
[1755225728867,2.1598732,4630.0,4629.7,0.5531]
[1755225729107,2.1598732,4630.0,4629.8,0.4451]
[1755225729484,3.31,4629.9,4629.8,0.4451]
[1755225729871,5.46987386,4629.9,4629.7,0.108]
[1755225730071,3.31,4629.9,4629.7,0.108]
[1755225730272,3.31,4629.9,4629.7,0.5531]
[1755225731013,3.31,4629.9,4629.8,0.4451]
[1755225731602,3.31,4629.9,4629.8,0.9025]
[1755225732105,0.802,4630.1,4629.8,0.9025]
[1755225732279,0.802,4630.1,4629.9,0.9025]
[1755225732471,0.802,4630.1,4629.7,0.108]
[1755225732803,0.802,4630.1,4630.0,0.9025]
[1755225732966,6.27078056,4630.1,4630.0,0.4451]
[1755225733312,2.1598772,4629.9,4629.7,0.108]
[1755225733990,2.1598772,4629.9,4629.7,0.5531]
[1755225734187,2.15992051,4629.8,4629.7,0.5531]
[1755225734427,2.15992051,4629.8,4629.7,0.108]
[1755225734428,32.15992051,4629.8,4629.7,0.108]
[1755225734885,2.15997086,4629.7,4629.2,0.108]
[1755225735080,30.0,4629.7,4629.2,0.108]
[1755225735399,2.16015202,4629.4,4629.2,0.108]
[1755225735770,3.309,4629.5,4629.2,0.5531]
[1755225735977,0.108,4629.9,4629.3,0.4451]
[1755225736187,2.15997077,4629.7,4629.3,0.9025]
[1755225736371,32.16001833,4629.6,4629.4,0.4451]
[1755225736570,30.0,4629.5,4629.4,0.4451]
[1755225736809,30.0,4629.5,4629.3,0.4574]
[1755225736980,30.0,4629.6,4629.3,0.4574]
[1755225737382,30.0,4629.6,4629.4,0.4451]
[1755225737603,30.0,4629.6,4629.5,0.4451]
[1755225738005,33.309,4629.6,4629.5,0.4451]
[1755225739171,0.002,4630.1,4629.5,0.9025]
[1755225739372,0.002,4630.1,4629.7,0.108]
[1755225739572,0.002,4630.1,4629.8,0.9025]
[1755225739804,0.002,4630.1,4629.8,0.4451]
[1755225739968,30.0,4630.0,4629.7,0.108]
[1755225740168,30.0,4630.0,4629.8,0.4451]
[1755225740372,30.0,4630.0,4629.9,0.4451]
[1755225741175,30.0,4630.0,4629.5,0.4451]
[1755225741374,33.309,4630.0,4629.5,0.5531]
[1755225741578,30.0,4629.9,4629.5,0.5531]
[1755225741779,30.0,4629.9,4629.6,0.4714]
[1755225742115,3.309,4630.0,4629.7,0.4714]
[1755225742283,3.309,4630.0,4629.8,0.4714]
[1755225742475,3.309,4630.0,4629.7,0.4896]
[1755225742672,3.309,4630.0,4629.9,0.4714]
[1755225742879,3.309,4630.0,4629.5,0.5794]
[1755225743076,3.309,4630.0,4629.6,0.4714]
[1755225743387,3.309,4630.0,4629.5,0.108]
[1755225743590,3.309,4630.0,4629.3,0.108]
[1755225743798,2.15997104,4629.7,4629.3,0.108]
[1755225744116,2.15997104,4629.7,4629.0,0.4906]
[1755225744117,30.0,4629.6,4629.0,0.001]
[1755225744325,30.0,4629.6,4629.1,0.108]
[1755225744616,30.0,4629.6,4629.1,0.5794]
[1755225745022,30.0,4629.6,4629.1,0.108]
[1755225745221,3.309,4629.5,4629.1,0.108]
[1755225745514,30.01641705,4629.4,4629.0,0.001]
[1755225745679,33.309,4629.3,4629.0,0.001]
[1755225745880,30.01641705,4629.2,4629.0,0.001]
[1755225746085,30.0,4629.1,4629.0,0.001]
[1755225746280,3.309,4629.3,4629.0,0.001]
[1755225746281,30.0,4629.2,4629.0,0.001]
[1755225747004,3.309,4629.1,4629.0,0.001]
[1755225747208,30.108,4629.1,4629.0,0.001]
[1755225747444,3.309,4629.6,4629.0,0.5986]
[1755225747719,0.108,4629.7,4629.0,0.5986]
[1755225747921,0.108,4629.7,4629.1,0.4714]
[1755225748487,0.002,4630.1,4629.2,0.4896]
[1755225748692,30.0,4630.0,4629.5,0.108]
[1755225748898,30.0,4630.0,4629.6,0.961]
[1755225749194,30.0,4630.0,4629.7,0.961]
[1755225749396,0.11,4630.1,4629.8,0.961]
[1755225749602,0.11,4630.1,4629.8,0.4896]
[1755225749809,0.11,4630.1,4629.9,0.961]
[1755225750010,0.11,4630.1,4629.9,0.4896]
[1755225750203,0.11,4630.1,4630.0,0.4714]
[1755225750404,0.11,4630.1,4629.5,0.5976]
[1755225750614,0.11,4630.1,4629.7,0.4714]
[1755225750812,30.0,4630.0,4629.7,0.4714]
[1755225751020,30.0,4630.0,4629.5,0.5976]
[1755225751232,30.0,4630.0,4629.8,0.4714]
[1755225751434,2.15992391,4629.8,4629.5,0.108]
[1755225751636,2.15992391,4629.8,4629.5,0.5794]
[1755225751922,30.0,4629.7,4629.5,0.5794]
[1755225752346,30.0,4629.7,4629.2,0.4714]
[1755225752533,2.1599684,4629.7,4629.3,0.108]
[1755225752713,30.0,4629.6,4629.3,0.108]
[1755225753114,30.0,4629.6,4629.4,0.4714]
[1755225753710,30.0,4629.6,4629.5,0.4714]
[1755225754011,30.0,4629.7,4629.5,0.4714]
[1755225754206,32.15987112,4630.0,4629.6,0.961]
[1755225754414,30.0,4629.9,4629.7,0.4714]
[1755225754642,30.0,4630.0,4629.4,0.4896]
[1755225754844,30.0,4630.0,4629.8,0.4714]
[1755225755049,30.0,4630.0,4629.5,0.4714]
[1755225755347,32.15982721,4630.0,4629.9,0.4714]
[1755225756146,2.15989785,4629.9,4629.6,0.961]
[1755225756334,2.15989785,4629.9,4629.7,0.4714]
[1755225756532,2.15992051,4629.8,4629.7,0.4714]
[1755225756845,0.11,4630.1,4629.7,0.4714]
[1755225757020,30.0,4630.0,4629.7,0.4896]
[1755225757345,2.15987386,4629.9,4629.3,0.108]
[1755225757546,2.15992493,4629.8,4629.4,0.4714]
[1755225757749,2.15997367,4629.7,4629.4,0.4714]
[1755225757919,2.15997367,4629.7,4629.3,0.108]
[1755225758114,2.15991713,4629.9,4629.3,0.108]
[1755225758350,30.0,4629.8,4629.3,0.5794]
[1755225758516,30.0,4629.8,4629.4,0.961]
[1755225758846,32.15992975,4629.8,4629.3,0.108]
[1755225759043,30.0,4629.7,4629.4,0.4714]
[1755225759243,30.0,4629.7,4629.5,0.4714]
[1755225760245,30.0,4629.7,4629.3,0.108]
[1755225760449,0.01641705,4629.6,4629.3,0.108]
[1755225760949,32.16008283,4629.5,4629.3,0.108]
[1755225761249,2.16008283,4629.5,4629.3,0.108]
[1755225761435,3.308,4629.8,4629.0,0.001]
[1755225761623,0.108,4629.5,4629.0,0.001]
[1755225761831,2.16024713,4629.1,4629.0,0.001]
[1755225762430,32.16024713,4629.1,4629.0,0.001]
[1755225762630,32.26824713,4629.1,4629.0,0.001]
[1755225763046,33.2045935,4629.1,4629.0,0.001]
[1755225763250,32.7341935,4629.1,4629.0,0.001]
[1755225763448,32.26824713,4629.1,4629.0,0.001]
[1755225764117,2.16024713,4629.1,4629.0,0.001]
[1755225764317,0.108,4629.3,4629.0,0.962]
[1755225764318,2.16018215,4629.3,4629.0,0.962]
[1755225764543,3.416,4629.7,4629.1,0.961]
[1755225764729,32.1600567,4629.6,4629.2,0.961]
[1755225764932,30.0,4629.5,4629.3,0.4714]
[1755225765125,3.416,4629.7,4629.0,0.109]
[1755225765126,2.16013437,4629.4,4629.0,0.5804]
[1755225765325,2.16024713,4629.1,4629.0,0.001]
[1755225765851,32.16024713,4629.1,4629.0,0.001]
[1755225766560,32.26824713,4629.1,4629.0,0.001]
[1755225767015,32.16024713,4629.1,4629.0,0.4724]
[1755225767214,2.16024713,4629.1,4629.0,0.4724]
[1755225767757,2.16186732,4630.0,4629.0,0.962]
[1755225767758,0.108,4629.6,4629.0,0.962]
[1755225767968,2.16016687,4629.3,4629.1,0.4714]
[1755225768135,2.16016687,4629.3,4629.0,0.109]
[1755225768322,2.16016687,4629.3,4629.2,0.4714]
[1755225768719,0.108,4629.6,4629.2,0.961]
[1755225768977,2.15999292,4629.7,4629.3,0.961]
[1755225769175,2.16006048,4629.5,4629.4,1.069]
[1755225769340,2.15999292,4629.7,4629.4,1.069]
[1755225769655,2.16001382,4629.6,4629.5,0.4714]
[1755225771672,2.16006048,4629.5,4629.4,0.108]
[1755225772454,2.16011233,4629.4,4629.0,0.4758]
[1755225772655,2.16011233,4629.4,4629.1,0.9582]
[1755225772862,2.16011233,4629.4,4629.1,0.4834]
[1755225773063,2.16011233,4629.4,4629.2,0.4748]
[1755225773262,2.16011233,4629.4,4629.1,0.4834]
[1755225773429,0.108,4629.7,4629.3,0.4748]
[1755225773630,30.0,4629.6,4629.4,0.9582]
[1755225773824,30.0,4629.9,4629.4,0.9582]
[1755225774065,32.15989258,4629.9,4629.5,0.9582]
[1755225774236,32.15996363,4629.8,4629.5,0.4834]
[1755225774437,32.15996716,4629.7,4629.6,0.4748]
[1755225774763,0.11,4630.0,4629.6,0.4748]
[1755225775058,2.15992051,4629.8,4629.7,0.4748]
[1755225775263,32.15992051,4629.8,4629.7,0.4748]
[1755225775867,2.15992051,4629.8,4629.7,0.4748]
[1755225777735,2.16188384,4629.9,4629.7,0.9582]
[1755225778063,2.16188384,4629.9,4629.8,0.4748]
[1755225778374,0.002,4629.9,4629.8,0.9582]
[1755225778535,0.002,4629.9,4629.8,1.0662]
[1755225779265,0.002,4629.9,4629.8,1.38881563]
[1755225779983,0.002,4629.9,4629.8,1.0662]
[1755225781282,0.002,4629.9,4629.8,0.5828]
[1755225781883,0.002,4629.9,4629.8,1.0662]
[1755225782084,0.002,4629.9,4629.8,0.5828]
[1755225782462,0.002,4629.9,4629.8,1.0662]
[1755225783379,0.002,4629.9,4629.8,0.5828]
[1755225783576,0.002,4629.9,4629.8,0.108]
[1755225783985,32.16187386,4629.9,4629.3,0.4748]
[1755225784188,2.1601538,4629.3,4629.2,0.108]
[1755225784493,2.1602295,4629.2,4629.0,0.001]
[1755225784679,2.16024713,4629.1,4629.0,0.109]
[1755225786297,32.16024713,4629.1,4629.0,0.001]
[1755225789084,2.16024713,4629.1,4629.0,0.001]
[1755225795792,0.108,4629.3,4629.0,0.9592]
[1755225795992,30.0,4629.2,4629.0,0.4758]
[1755225796311,2.16024713,4629.1,4629.0,0.4758]
[1755225796613,2.16020547,4629.2,4629.1,0.4748]
[1755225796810,0.108,4629.3,4629.1,0.4748]
[1755225796982,0.108,4629.6,4629.1,0.4748]
[1755225797301,2.16020046,4629.2,4629.1,0.4748]
[1755225798474,2.16024713,4629.1,4629.0,0.109]
[1755225798873,2.16024713,4629.1,4629.0,0.5838]
[1755225799707,0.002,4630.0,4629.1,2.16024713]
[1755225799880,2.16184079,4630.0,4629.2,3.61994471]
[1755225800079,0.002,4630.0,4629.8,0.108]
[1755225800474,0.002,4630.0,4629.8,0.5828]
[1755225801212,0.002,4630.0,4629.8,1.0662]
[1755225802287,0.002,4630.0,4629.8,3.22612051]
[1755225802504,0.002,4630.0,4629.8,3.78849118]
[1755225803310,0.002,4630.0,4629.8,4.23049118]
[1755225803509,0.002,4630.0,4629.8,4.33849118]
[1755225803671,0.002,4630.0,4629.8,4.31689198]
[1755225804209,0.002,4630.0,4629.8,7.62489198]
[1755225804907,0.002,4630.0,4629.8,7.71141598]
[1755225805706,0.002,4630.0,4629.8,10.71141598]
[1755225807608,0.002,4630.0,4629.8,14.96141598]
[1755225811585,1e-08,4630.6,4630.5,5.70959399]
[1755225811786,1e-08,4630.6,4630.5,13.37459399]
[1755225812112,1e-08,4630.6,4630.5,14.29399399]
[1755225812278,0.002,4632.6,4631.2,2.70926757]
[1755225812474,0.002,4632.6,4631.5,2.70912771]
[1755225812707,0.002,4632.6,4631.5,6.03771898]
[1755225812909,0.002,4632.6,4631.5,7.04352771]
[1755225813211,0.002,4632.6,4631.5,7.13001871]
[1755225813991,0.002,4632.6,4631.5,10.13001871]
[1755225814312,0.002,4632.6,4631.5,11.22143535]
[1755225814505,0.002,4632.6,4631.5,11.68603535]
[1755225816008,0.002,4632.6,4631.5,11.68503535]
[1755225817287,0.002,4632.6,4631.5,15.93503535]
[1755225817989,0.4827,4632.6,4631.5,15.01563535]
[1755225818503,0.4827,4632.6,4631.5,15.47043535]
[1755225819104,0.4827,4632.6,4631.5,15.93503535]
[1755225819305,0.002,4632.6,4631.5,15.93503535]
[1755225824991,0.4827,4632.6,4631.5,15.93503535]
[1755225826522,0.4827,4632.6,4631.5,15.01563535]
[1755225826726,0.5966,4632.6,4631.5,15.01563535]
[1755225826893,0.4807,4632.2,4631.5,8.62314435]
[1755225827094,0.4807,4632.2,4631.5,7.67814435]
[1755225827491,0.002,4632.6,4631.5,7.67814435]
[1755225827693,0.5966,4632.6,4631.5,7.67814435]
[1755225828116,0.4807,4632.3,4631.5,7.67814435]
[1755225832329,2.16062116,4632.6,4631.5,12.36924435]
[1755225832525,0.002,4632.6,4631.5,12.84094435]
[1755225833627,2.16062422,4632.6,4631.5,11.92814435]
[1755225833796,0.4908,4632.4,4631.5,11.92814435]
[1755225834435,0.4908,4632.4,4631.5,12.36924435]
[1755225834935,0.002,4632.6,4631.5,12.84094435]
[1755225836724,2.16062175,4632.6,4631.5,12.84094435]
[1755225837023,0.4908,4632.5,4631.5,12.36924435]
[1755225837415,2.64946262,4632.5,4631.5,11.92814435]
[1755225837728,0.6047,4632.5,4631.5,11.92814435]
[1755225837933,0.4908,4632.5,4631.5,12.36924435]
[1755225841147,0.4908,4632.2,4631.5,11.92814435]
[1755225841368,0.002,4632.6,4631.5,7.663]
[1755225841651,0.6067,4631.6,4631.5,3.413]
[1755225841817,0.002,4631.6,4631.5,3.413]
[1755225842809,0.4928,4631.6,4631.5,3.413]
[1755225843856,0.002,4631.6,4631.5,3.413]
[1755225844161,0.4928,4631.6,4631.5,3.413]
[1755225845438,0.002,4631.6,4631.5,3.413]
[1755225848339,0.002,4631.6,4631.5,5.57212771]
[1755225848650,0.002,4631.6,4631.5,3.413]
[1755225848865,0.0132,4631.6,4631.5,3.413]
[1755225850029,0.0132,4631.6,4631.5,0.108]
[1755225850225,0.0132,4631.6,4631.5,3.412]
[1755225850860,0.0132,4631.6,4631.5,7.97375103]
[1755225851061,0.0132,4631.6,4631.5,8.06015976]
[1755225851236,0.0132,4631.6,4631.5,8.14666076]
[1755225852042,0.0132,4631.6,4631.5,5.98753305]
[1755225852360,0.0132,4631.6,4631.5,12.39666076]
[1755225853061,0.0132,4631.6,4631.5,8.77473305]
[1755225853236,0.0132,4631.6,4631.5,8.68823205]
[1755225853437,0.0132,4631.6,4631.5,7.662]
[1755225853963,0.0132,4631.6,4631.5,8.1031]
[1755225854561,0.0132,4631.6,4631.5,8.5748]
[1755225855168,0.0132,4631.6,4631.5,8.1031]
[1755225855363,0.0132,4631.6,4631.5,7.662]
[1755225855567,2.17228109,4631.6,4631.5,7.662]
[1755225855763,0.504,4631.6,4631.5,7.662]
[1755225856065,0.504,4631.6,4631.5,3.412]
[1755225856234,0.0132,4631.6,4631.5,3.412]
[1755225858359,0.0132,4631.6,4631.5,3.75535927]
[1755225859362,0.0132,4631.6,4631.5,3.412]
[1755225861571,0.504,4631.6,4631.5,3.412]
[1755225862072,0.0132,4631.6,4631.5,3.412]
[1755225863359,0.0132,4631.6,4631.5,3.8427]
[1755225863537,0.0132,4631.6,4631.5,4.3243]
[1755225863741,0.0132,4631.6,4631.5,4.75898922]
[1755225863971,0.0132,4631.6,4631.5,6.91811693]
[1755225864279,0.0132,4631.6,4631.5,11.16811693]
[1755225864577,0.0132,4631.6,4631.5,7.46811693]
[1755225865978,0.0132,4631.6,4631.5,7.55461793]
[1755225867647,0.0132,4631.6,4631.5,11.80461793]
[1755225868756,0.0132,4631.6,4631.5,14.80461793]
[1755225871562,1e-08,4631.8,4631.7,2.70903447]
[1755225871763,1e-08,4631.8,4631.7,15.48908885]
[1755225871984,1e-08,4631.8,4631.7,15.46749851]
[1755225872293,1e-08,4631.8,4631.7,16.37979851]
[1755225872502,0.002,4632.1,4631.7,16.37979851]
[1755225872503,1e-08,4632.1,4632.0,15.54755741]
[1755225872683,1e-08,4632.1,4632.0,18.85155741]